[Event "FIDE Womens Grand Swiss 2021"]
[Site "Riga"]
[Date "2021.11.01"]
[Round "6.21"]
[White "Cori T., Deysi"]
[Black "Kamalidenova, Meruert"]
[Result "1-0"]
[ECO "D78"]
[WhiteElo "2382"]
[BlackElo "2339"]
[Annotator "NA"]
[PlyCount "109"]
[EventDate "2021.10.27"]
[EventType "swiss"]
[EventCountry "LAT"]
[Tiebreak "Cut1 Buchholz+Sonneborn-Berger (Swiss)"]
[SourceTitle "playchess.com"]
[Source "ChessBase"]
[SourceQuality "1"]
[TimeControl "40/6000+30:20/3000+30:900+30"]

1. d4 {[%emt 0:10:05]} Nf6 {[%emt 0:10:07]} 2. Nf3 {[%emt 0:00:41]} g6 {
[%emt 0:00:34]} 3. g3 {[%emt 0:00:18]} Bg7 {[%emt 0:00:41]} 4. Bg2 {[%emt 0:00:
07]} O-O {[%emt 0:00:45]} 5. O-O {[%emt 0:00:36]} d5 {[%emt 0:00:34]} 6. c4 {
[%emt 0:01:07]} c6 {[%emt 0:01:04]} 7. Ne5 {[%emt 0:01:04]} dxc4 {[%emt 0:03:
15]} 8. Nxc4 {[%emt 0:00:56]} Be6 {[%emt 0:00:16]} 9. Ne5 {[%emt 0:00:34]} Nbd7
{[%emt 0:05:12]} 10. Nf3 {[%emt 0:23:14]} Ne4 {[%emt 0:02:40]} 11. Qc2 {
[%emt 0:06:09]} Bd5 {[%emt 0:06:04]} 12. Rd1 {[%emt 0:03:01]} f5 {[%emt 0:03:
32]} 13. Be3 {[%emt 0:08:29]} Qe8 {[%emt 0:06:19]} 14. Ne1 {[%emt 0:09:34]} e5
{[%emt 0:07:03]} 15. dxe5 {[%emt 0:13:37]} Nxe5 {[%emt 0:02:19]} 16. Bd4 $11 {
[%emt 0:01:24]} Qe6 {[%emt 0:08:37]} 17. Nc3 {[%emt 0:05:13]} Nxc3 {[%emt 0:07:
15]} 18. Qxc3 {[%emt 0:00:34]} Rad8 {[%emt 0:09:12]} 19. Nd3 {[%emt 0:14:22]}
Bxg2 {[%emt 0:03:40]} 20. Nf4 {[%emt 0:00:51]} Qe7 {[%emt 0:05:14]} 21. Kxg2 {
[%emt 0:01:23]} Rfe8 {[%emt 0:01:31]} 22. Qb3+ {[%emt 0:03:05]} Qf7 {[%emt 0:
02:58]} 23. Bxa7 {[%emt 0:00:57]} Qxb3 {[%emt 0:05:44]} 24. axb3 {[%emt 0:00:
10]} Nf7 {[%emt 0:00:10]} 25. Rxd8 {[%emt 0:02:15]} Nxd8 {[%emt 0:01:02]} 26.
Bb6 {[%emt 0:01:10]} Ne6 {[%emt 0:03:12]} 27. Nd3 {[%emt 0:02:04]} Bd4 {
[%emt 0:01:15]} 28. Bxd4 {[%emt 0:00:35]} Nxd4 {[%emt 0:00:07]} 29. Ra7 {
[%emt 0:00:42]} b5 {[%emt 0:02:23]} 30. e3 {[%emt 0:00:35]} Nxb3 {[%emt 0:00:
45]} 31. Rc7 {[%emt 0:00:34]} Rd8 {[%emt 0:00:56]} 32. Ne5 {[%emt 0:00:32]} c5
{[%emt 0:02:23]} 33. Nd7 {[%emt 0:00:22]} c4 {[%emt 0:02:04]} 34. Nf6+ {
[%emt 0:00:01]} Kf8 {[%emt 0:00:07]} 35. Nxh7+ {[%emt 0:00:02]} Kg8 {[%emt 0:
00:15]} 36. Nf6+ {[%emt 0:00:07]} Kf8 {[%emt 0:00:06]} 37. Nh7+ {[%emt 0:01:21]
} Kg8 {[%emt 0:00:05]} 38. Nf6+ {[%emt 0:00:01]} Kf8 {[%emt 0:00:08]} 39. g4 {
[%emt 0:01:36]} fxg4 {[%emt 0:01:36]} 40. Kg3 {[%emt 0:00:13]} Rd2 {[%emt 0:01:
38]} 41. Kf4 {[%emt 0:28:42]} Rxb2 {[%emt 0:25:23]} 42. Kg5 {[%emt 0:00:27]}
Rxf2 {[%emt 0:00:28]} 43. Kxg6 {[%emt 0:00:34]} Rxf6+ {[%emt 0:00:14]} 44. Kxf6
{[%emt 0:00:04]} Ke8 {[%emt 0:00:44]} 45. Ke6 {[%emt 0:00:05]} Kd8 {[%emt 0:01:
19]} 46. Rc6 {[%emt 0:14:18]} Nc1 {[%emt 0:02:37]} 47. Kd6 {[%emt 0:05:24]} Ne2
{[%emt 0:02:30]} 48. Rb6 {[%emt 0:01:30]} Ke8 {[%emt 0:00:52]} 49. Rxb5 {
[%emt 0:00:49]} g3 {[%emt 0:00:52]} 50. Ke6 {[%emt 0:01:25]} Kd8 {[%emt 0:01:
15]} 51. hxg3 {[%emt 0:00:32]} Nxg3 {[%emt 0:00:21]} 52. Rd5+ {[%emt 0:00:07]}
Kc7 {[%emt 0:01:04]} 53. Rc5+ {[%emt 0:00:01]} Kb6 {[%emt 0:00:08]} 54. Rxc4 {
[%emt 0:00:04]} Nf1 {[%emt 0:00:09]} 55. Rc3 {[%emt 0:01:09]} 1-0

[Event "FIDE Womens Grand Swiss 2021"]
[Site "Riga"]
[Date "2021.11.01"]
[Round "6.23"]
[White "Eizaguerri Floris, Maria"]
[Black "Arabidze, Meri"]
[Result "1/2-1/2"]
[ECO "B33"]
[WhiteElo "2328"]
[BlackElo "2441"]
[Annotator "NA"]
[PlyCount "125"]
[EventDate "2021.10.27"]
[EventType "swiss"]
[EventCountry "LAT"]
[Tiebreak "Cut1 Buchholz+Sonneborn-Berger (Swiss)"]
[SourceTitle "playchess.com"]
[Source "ChessBase"]
[SourceQuality "1"]
[TimeControl "40/6000+30:20/3000+30:900+30"]

1. e4 {[%emt 0:10:02]} c5 {[%emt 0:10:08]} 2. Nf3 {[%emt 0:00:06]} Nc6 {
[%emt 0:00:21]} 3. d4 {[%emt 0:00:09]} cxd4 {[%emt 0:00:22]} 4. Nxd4 {[%emt 0:
00:05]} Nf6 {[%emt 0:00:27]} 5. Nc3 {[%emt 0:00:21]} e5 {[%emt 0:00:17]} 6.
Ndb5 {[%emt 0:00:18]} d6 {[%emt 0:00:09]} 7. Nd5 {[%emt 0:00:16]} Nxd5 {
[%emt 0:00:16]} 8. exd5 {[%emt 0:00:05]} Nb8 {[%emt 0:00:32]} 9. a4 {[%emt 0:
00:26]} Be7 {[%emt 0:00:52]} 10. Be2 {[%emt 0:00:43]} O-O {[%emt 0:01:04]} 11.
O-O {[%emt 0:00:16]} a6 {[%emt 0:03:23]} 12. Na3 {[%emt 0:00:17]} Nd7 {[%emt 0:
00:07]} 13. Nc4 {[%emt 0:03:46]} f5 {[%emt 0:12:36]} 14. f4 {[%emt 0:01:40]}
Bf6 {[%emt 0:01:36]} 15. a5 {[%emt 0:04:48]} Qc7 {[%emt 0:04:56]} 16. Be3 {
[%emt 0:10:11]} exf4 {[%emt 0:05:14]} 17. Bxf4 {[%emt 0:00:44]} Ne5 {[%emt 0:
00:11]} 18. Nb6 {[%emt 0:21:08]} Rb8 {[%emt 0:01:02]} 19. Be3 {[%emt 0:09:21]}
Ng6 {[%emt 0:06:08]} 20. Rb1 {[%emt 0:05:57]} Qe7 {[%emt 0:05:16]} (20... f4 $5
21. Bxf4 Bf5 22. Bxd6 Qxd6 23. Rxf5 Bd4+ 24. Qxd4 Rxf5 $11) 21. Bf2 {[%emt 0:
01:51]} Be5 $14 {[%emt 0:04:18]} 22. b4 {[%emt 0:07:42]} Nf4 {[%emt 0:04:22]}
23. Bf3 {[%emt 0:05:12]} g5 {[%emt 0:03:44]} 24. Qd2 {[%emt 0:02:02]} g4 {
[%emt 0:14:09]} 25. Bd1 {[%emt 0:00:07]} Ng6 {[%emt 0:02:17]} 26. Rb3 {[%emt 0:
05:41]} Bd7 {[%emt 0:04:47]} 27. Nxd7 {[%emt 0:08:43]} Qxd7 {[%emt 0:00:08]}
28. c4 {[%emt 0:00:11]} f4 {[%emt 0:06:36]} 29. Bc2 {[%emt 0:10:30]} Qg7 {
[%emt 0:05:19]} 30. Qd1 {[%emt 0:01:40]} Ne7 {[%emt 0:02:51]} 31. g3 {[%emt 0:
00:37]} f3 {[%emt 0:06:44]} 32. Qd2 {[%emt 0:00:08]} Rbc8 {[%emt 0:01:33]} 33.
c5 {[%emt 0:00:32]} Rfd8 {[%emt 0:00:59]} 34. Be4 {[%emt 0:00:20]} h5 {[%emt 0:
01:29]} 35. Kh1 {[%emt 0:00:55]} Kh8 {[%emt 0:01:44]} 36. h4 {[%emt 0:00:19]}
Ng8 {[%emt 0:01:05]} 37. Bf5 {[%emt 0:00:35]} Rc7 {[%emt 0:00:38]} 38. c6 {
[%emt 0:01:05]} bxc6 {[%emt 0:00:57]} 39. Bb6 {[%emt 0:00:10]} Bxg3 {[%emt 0:
00:50]} 40. Bxc7 {[%emt 0:00:04]} Qxc7 {[%emt 0:00:22]} 41. Qg5 {[%emt 0:23:50]
} Qf7 {[%emt 0:24:45]} 42. Be6 {[%emt 0:12:59]} Qf6 {[%emt 0:02:35]} 43. Qxf6+
{[%emt 0:04:09]} Nxf6 {[%emt 0:00:05]} 44. dxc6 {[%emt 0:00:13]} d5 {[%emt 0:
01:16]} 45. Rc1 {[%emt 0:08:05]} Bc7 {[%emt 0:00:57]} 46. b5 {[%emt 0:00:20]}
axb5 {[%emt 0:00:51]} 47. Rxb5 {[%emt 0:00:16]} Ne4 {[%emt 0:17:36]} 48. Rb7 {
[%emt 0:03:49]} Ng3+ {[%emt 0:00:17]} 49. Kh2 {[%emt 0:00:22]} Ne2+ {[%emt 0:
00:51]} 50. Rxc7 {[%emt 0:00:04]} Nxc1 {[%emt 0:00:06]} 51. Rd7 {[%emt 0:00:36]
} Rf8 {[%emt 0:02:15]} 52. c7 {[%emt 0:00:28]} f2 {[%emt 0:04:01]} 53. Rf7 {
[%emt 0:00:16]} Rxf7 {[%emt 0:00:51]} 54. c8=Q+ {[%emt 0:00:05]} Kg7 {[%emt 0:
00:10]} 55. Qc3+ {[%emt 0:02:17]} Kf8 {[%emt 0:00:31]} 56. Qh8+ {[%emt 0:00:35]
} Ke7 {[%emt 0:00:07]} 57. Bxf7 {[%emt 0:00:35]} f1=Q {[%emt 0:00:15]} 58. Qe8+
{[%emt 0:00:06]} Kf6 {[%emt 0:00:56]} 59. Qe6+ {[%emt 0:00:05]} Kg7 {[%emt 0:
00:03]} 60. Qg6+ {[%emt 0:00:06]} Kf8 {[%emt 0:00:02]} 61. Qg8+ {[%emt 0:16:02]
} Ke7 {[%emt 0:15:01]} 62. Qe8+ {[%emt 0:00:08]} Kf6 {[%emt 0:00:31]} 63. Qe6+
{[%emt 0:00:06]} 1/2-1/2

[Event "FIDE Womens Grand Swiss 2021"]
[Site "Riga"]
[Date "2021.11.01"]
[Round "6.24"]
[White "Cyfka, Karina"]
[Black "Milliet, Sophie"]
[Result "1-0"]
[ECO "A61"]
[WhiteElo "2409"]
[BlackElo "2410"]
[Annotator "ChessBase"]
[PlyCount "153"]
[EventDate "2021.10.27"]
[EventType "swiss"]
[EventCountry "LAT"]
[Tiebreak "Cut1 Buchholz+Sonneborn-Berger (Swiss)"]
[SourceTitle "playchess.com"]
[Source "ChessBase"]
[SourceQuality "1"]
[TimeControl "40/6000+30:20/3000+30:900+30"]

1. d4 {[%emt 0:10:03]} Nf6 {[%emt 0:10:03]} 2. Nf3 {[%emt 0:00:10]} e6 {
[%emt 0:01:05]} 3. c4 {[%emt 0:00:13]} c5 {[%emt 0:00:12]} 4. d5 {[%emt 0:00:
12]} d6 {[%emt 0:00:10]} 5. Nc3 {[%emt 0:00:30]} exd5 {[%emt 0:00:05]} 6. cxd5
{[%emt 0:00:04]} g6 {[%emt 0:00:04]} 7. Bf4 {[%emt 0:00:54]} Bg7 {[%emt 0:00:
48]} 8. Qa4+ {[%emt 0:01:19]} Bd7 {[%emt 0:00:06]} 9. Qb3 {[%emt 0:00:05]} b5 {
[%emt 0:00:17]} 10. e3 {[%emt 0:03:06]} c4 {[%emt 0:04:41]} 11. Qd1 {[%emt 0:
21:36]} b4 {[%emt 0:32:47]} 12. Nb1 {[%emt 0:03:43]} c3 {[%emt 0:04:53]} 13.
bxc3 {[%emt 0:01:49]} bxc3 {[%emt 0:00:08]} 14. Nxc3 {[%emt 0:01:08]} Qa5 {
[%emt 0:01:14]} 15. Qd2 {[%emt 0:01:47]} O-O {[%emt 0:02:10]} 16. Bxd6 {
[%emt 0:06:56]} Ng4 {[%emt 0:09:14]} 17. Rc1 {[%emt 0:04:39]} Rc8 {[%emt 0:04:
29]} 18. Nd4 {[%emt 0:00:26]} Na6 {[%emt 0:12:37]} 19. Be2 {[%emt 0:03:03]} Nc5
{[%emt 0:01:38]} 20. O-O {[%emt 0:01:34]} Na4 {[%emt 0:00:50]} 21. Ne4 {
[%emt 0:04:01]} Qxd5 {[%emt 0:01:59]} 22. Bf3 {[%emt 0:05:32]} Kh8 {[%emt 0:00:
03]} 23. Qb4 {[%emt 0:26:10]} Rxc1 {[%emt 0:18:57]} 24. Rxc1 {[%emt 0:00:04]}
Ne5 {[%emt 0:02:23]} 25. Bxe5 {[%emt 0:02:12]} Qxe5 {[%emt 0:00:01]} 26. Nf6 {
[%emt 0:03:45]} Rb8 {[%emt 0:02:05]} 27. Nxd7 {[%emt 0:00:32]} Rxb4 {[%emt 0:
00:18]} 28. Nxe5 {[%emt 0:00:28]} Bxe5 {[%emt 0:00:04]} 29. Nc6 {[%emt 0:00:09]
} Bb2 {[%emt 0:00:28]} 30. Rd1 {[%emt 0:06:51]} Rb7 {[%emt 0:00:05]} 31. g4 {
[%emt 0:00:23]} Nc3 {[%emt 0:00:58]} 32. Rd2 {[%emt 0:00:28]} Ba3 {[%emt 0:00:
52]} 33. Kg2 {[%emt 0:01:48]} Kg7 {[%emt 0:00:32]} 34. Rc2 {[%emt 0:00:44]} Nb1
{[%emt 0:00:26]} 35. Bd5 {[%emt 0:00:37]} Rc7 {[%emt 0:00:25]} 36. Rc4 {
[%emt 0:00:38]} Bd6 {[%emt 0:00:23]} 37. e4 {[%emt 0:00:34]} Na3 {[%emt 0:00:
29]} 38. Ra4 {[%emt 0:00:24]} Nb5 {[%emt 0:00:22]} 39. Ra5 {[%emt 0:00:23]} Nc3
{[%emt 0:00:51]} 40. Rxa7 {[%emt 0:00:21]} Nxd5 {[%emt 0:00:37]} 41. exd5 {
[%emt 0:50:08]} Rc8 {[%emt 0:50:25]} 42. Rd7 {[%emt 0:00:00]} Ba3 {[%emt 0:00:
00]} 43. Nd8 {[%emt 0:00:00]} Rc2 {[%emt 0:00:00]} 44. g5 {[%emt 0:00:00]} Kf8
{[%emt 0:00:00]} 45. Rxf7+ {[%emt 0:00:00]} Ke8 {[%emt 0:00:00]} 46. Rf3 {
[%emt 0:00:00]} Rxa2 {[%emt 0:00:00]} 47. Ne6 {[%emt 0:00:00]} Bd6 {[%emt 0:00:
00]} 48. Rd3 {[%emt 0:00:00]} Ra5 {[%emt 0:00:00]} 49. h3 {[%emt 0:00:00]} Kd7
{[%emt 0:00:00]} 50. Kf3 {[%emt 0:00:00]} Be7 {[%emt 0:00:00]} 51. h4 {[%emt 0:
00:00]} Kd6 {[%emt 0:00:00]} 52. Nf4 {[%emt 0:00:00]} Ra2 {[%emt 0:00:00]} 53.
Rb3 {[%emt 0:00:00]} Bd8 {[%emt 0:00:00]} 54. Rc3 {[%emt 0:01:26]} Kd7 {
[%emt 0:01:57]} 55. Nd3 {[%emt 0:01:59]} Bb6 {[%emt 0:02:27]} 56. Rc6 {[%emt 0:
02:14]} Bd4 {[%emt 0:01:18]} 57. Nc5+ {[%emt 0:00:27]} Ke8 {[%emt 0:01:37]} 58.
Ne4 {[%emt 0:00:41]} Ra3+ {[%emt 0:00:24]} 59. Kg2 {[%emt 0:02:05]} Ra7 {
[%emt 0:00:39]} 60. Nd6+ {[%emt 0:00:27]} Kd7 {[%emt 0:00:04]} 61. Nb5 {
[%emt 0:15:16]} Ra4 {[%emt 0:15:01]} 62. Rc7+ {[%emt 0:00:37]} Kd8 {[%emt 0:00:
01]} 63. Rxh7 {[%emt 0:00:44]} Be5 {[%emt 0:00:30]} 64. Na7 {[%emt 0:00:18]}
Ke8 {[%emt 0:02:06]} 65. Nc8 {[%emt 0:00:57]} Kd8 {[%emt 0:00:49]} 66. Ne7 {
[%emt 0:00:14]} Bd6 {[%emt 0:00:39]} 67. Nxg6 {[%emt 0:01:05]} Rd4 {[%emt 0:00:
08]} 68. Rh8+ {[%emt 0:00:29]} Kc7 {[%emt 0:00:05]} 69. Rh7+ {[%emt 0:00:17]}
Kd8 {[%emt 0:00:21]} 70. Nh8 {[%emt 0:00:17]} Ke8 {[%emt 0:01:17]} 71. g6 {
[%emt 0:00:41]} Be5 {[%emt 0:00:47]} 72. Nf7 {[%emt 0:00:41]} Bf6 {[%emt 0:00:
34]} 73. Nd6+ {[%emt 0:00:32]} Kd8 {[%emt 0:00:23]} 74. h5 {[%emt 0:00:15]}
Rxd5 {[%emt 0:00:09]} 75. Ne4 {[%emt 0:00:09]} Bd4 {[%emt 0:00:22]} 76. h6 {
[%emt 0:00:54]} Ke8 {[%emt 0:00:04]} 77. Rb7 {[%emt 0:00:33]} 1-0

[Event "FIDE Womens Grand Swiss 2021"]
[Site "Riga"]
[Date "2021.11.01"]
[Round "6.25"]
[White "February, Jesse Nikki"]
[Black "Golsta, Madara"]
[Result "0-1"]
[ECO "B76"]
[WhiteElo "1857"]
[BlackElo "2003"]
[Annotator "ChessBase"]
[PlyCount "164"]
[EventDate "2021.10.27"]
[EventType "swiss"]
[EventCountry "LAT"]
[Tiebreak "Cut1 Buchholz+Sonneborn-Berger (Swiss)"]
[SourceTitle "playchess.com"]
[Source "ChessBase"]
[SourceQuality "1"]
[TimeControl "40/6000+30:20/3000+30:900+30"]

1. e4 {[%emt 0:10:19]} c5 {[%emt 0:10:11]} 2. Nf3 {[%emt 0:00:08]} d6 {[%emt 0:
00:14]} 3. d4 {[%emt 0:00:23]} cxd4 {[%emt 0:00:07]} 4. Nxd4 {[%emt 0:00:08]}
Nf6 {[%emt 0:00:12]} 5. Nc3 {[%emt 0:00:08]} g6 {[%emt 0:00:14]} 6. Be3 {
[%emt 0:00:45]} Bg7 {[%emt 0:00:18]} 7. f3 {[%emt 0:00:31]} O-O {[%emt 0:00:43]
} 8. Qd2 {[%emt 0:00:56]} Nc6 {[%emt 0:00:17]} 9. g4 {[%emt 0:01:38]} Be6 {
[%emt 0:00:47]} 10. Nxe6 {[%emt 0:00:45]} fxe6 {[%emt 0:00:08]} 11. O-O-O {
[%emt 0:00:56]} Ne5 {[%emt 0:01:09]} 12. Be2 {[%emt 0:01:54]} Qc8 {[%emt 0:00:
27]} 13. Bh6 {[%emt 0:02:52]} Nc4 {[%emt 0:09:42]} 14. Qg5 {[%emt 0:02:05]}
Nxb2 {[%emt 0:09:01]} 15. Bxg7 {[%emt 0:04:40]} Qxc3 {[%emt 0:00:37]} 16. Bxf8
{[%emt 0:07:23]} Rc8 {[%emt 0:00:30]} 17. Qd2 {[%emt 0:00:34]} Qa3 {[%emt 0:01:
45]} 18. Kb1 {[%emt 0:02:33]} Na4 {[%emt 0:03:50]} 19. c4 {[%emt 0:02:24]} Nc3+
{[%emt 0:02:10]} 20. Ka1 {[%emt 0:01:21]} Kxf8 {[%emt 0:06:04]} 21. Rc1 {
[%emt 0:02:45]} Na4 {[%emt 0:02:16]} 22. Rc2 {[%emt 0:02:32]} Qc5 {[%emt 0:09:
01]} 23. Rd1 {[%emt 0:08:35]} g5 {[%emt 0:10:35]} 24. Qd4 {[%emt 0:03:58]}
Qxd4+ {[%emt 0:00:39]} 25. Rxd4 {[%emt 0:00:16]} e5 {[%emt 0:00:12]} 26. Rd1 {
[%emt 0:01:34]} Nc5 {[%emt 0:00:29]} 27. h4 {[%emt 0:03:06]} h6 {[%emt 0:01:08]
} 28. Rh1 {[%emt 0:00:58]} Kg7 {[%emt 0:01:57]} 29. Bf1 {[%emt 0:02:22]} Ne6 {
[%emt 0:01:58]} 30. hxg5 {[%emt 0:02:54]} hxg5 {[%emt 0:00:10]} 31. Rb2 {
[%emt 0:05:29]} b6 {[%emt 0:01:06]} 32. a4 {[%emt 0:01:44]} Rc7 {[%emt 0:02:04]
} 33. Ka2 {[%emt 0:01:29]} Nd4 {[%emt 0:00:48]} 34. Rh3 {[%emt 0:00:41]} Nh7 {
[%emt 0:01:35]} 35. Ka3 {[%emt 0:02:39]} Nf8 {[%emt 0:00:39]} 36. Rbh2 {
[%emt 0:01:22]} Ng6 {[%emt 0:00:44]} 37. Rh7+ {[%emt 0:03:08]} Kg8 {[%emt 0:00:
57]} 38. R7h5 {[%emt 0:04:59]} Ne6 {[%emt 0:20:15]} 39. Rc2 {[%emt 0:10:00]}
Ngf4 {[%emt 0:01:38]} 40. Rh6 {[%emt 0:02:59]} Nd4 {[%emt 0:01:19]} 41. Rc3 {
[%emt 0:55:12]} Kg7 {[%emt 1:00:48]} 42. Rh2 {[%emt 0:00:25]} Rc8 {[%emt 0:00:
22]} 43. Kb4 {[%emt 0:03:35]} a5+ {[%emt 0:00:15]} 44. Ka3 {[%emt 0:00:17]} b5
{[%emt 0:00:03]} 45. axb5 {[%emt 0:00:00]} Nxb5+ {[%emt 0:00:00]} 46. cxb5 {
[%emt 0:00:00]} Rxc3+ {[%emt 0:00:00]} 47. Ka2 {[%emt 0:00:00]} Ne6 {[%emt 0:
00:00]} 48. b6 {[%emt 0:00:00]} Nc5 {[%emt 0:00:00]} 49. Rb2 {[%emt 0:00:00]}
Rxf3 {[%emt 0:00:00]} 50. Bc4 {[%emt 0:00:00]} Rf8 {[%emt 0:00:00]} 51. b7 {
[%emt 0:00:00]} Rb8 {[%emt 0:00:00]} 52. Bd5 {[%emt 0:00:00]} e6 {[%emt 0:00:
00]} 53. Bc6 {[%emt 0:00:00]} Na6 {[%emt 0:00:00]} 54. Ka3 {[%emt 0:00:00]} Kf7
{[%emt 0:00:00]} 55. Ka4 {[%emt 0:00:00]} Nb4 {[%emt 0:00:00]} 56. Rxb4 {
[%emt 0:00:00]} axb4 {[%emt 0:00:00]} 57. Kxb4 {[%emt 0:00:00]} Ke7 {[%emt 0:
00:00]} 58. Kb5 {[%emt 0:00:17]} d5 {[%emt 0:00:00]} 59. exd5 {[%emt 0:02:01]}
e4 {[%emt 0:00:14]} 60. dxe6 {[%emt 0:08:26]} e3 {[%emt 0:00:18]} 61. Bf3 {
[%emt 0:15:14]} Rxb7+ {[%emt 0:15:22]} 62. Kc4 {[%emt 0:00:59]} Kxe6 {[%emt 0:
00:58]} 63. Kd4 {[%emt 0:00:50]} Rb4+ {[%emt 0:00:08]} 64. Kxe3 {[%emt 0:00:29]
} Ke5 {[%emt 0:00:06]} 65. Bd1 {[%emt 0:01:13]} Rc4 {[%emt 0:00:41]} 66. Kf2 {
[%emt 0:02:10]} Kf4 {[%emt 0:00:16]} 67. Kg2 {[%emt 0:00:25]} Rc1 {[%emt 0:00:
10]} 68. Be2 {[%emt 0:00:37]} Rc2 {[%emt 0:00:07]} 69. Kh3 {[%emt 0:00:16]}
Rc3+ {[%emt 0:00:30]} 70. Kg2 {[%emt 0:00:25]} Re3 {[%emt 0:00:07]} 71. Bd1 {
[%emt 0:00:23]} Re1 {[%emt 0:00:16]} 72. Bf3 {[%emt 0:00:24]} Rb1 {[%emt 0:01:
11]} 73. Be2 {[%emt 0:00:22]} Rb2 {[%emt 0:00:47]} 74. Kh3 {[%emt 0:00:28]} Ra2
{[%emt 0:00:23]} 75. Bd1 {[%emt 0:01:06]} Rd2 {[%emt 0:00:10]} 76. Be2 {
[%emt 0:00:07]} Ke3 {[%emt 0:01:17]} 77. Bc4 {[%emt 0:01:04]} Kf2 {[%emt 0:00:
18]} 78. Bf7 {[%emt 0:00:53]} Rd8 {[%emt 0:02:12]} 79. Bg6 {[%emt 0:00:57]}
Rh8+ {[%emt 0:00:09]} 80. Bh5 {[%emt 0:00:09]} Rh7 {[%emt 0:00:09]} 81. Kh2 {
[%emt 0:00:14]} Rxh5+ {[%emt 0:00:32]} 82. gxh5 {[%emt 0:00:33]} g4 {[%emt 0:
00:04]} 0-1

[Event "FIDE Womens Grand Swiss 2021"]
[Site "Riga"]
[Date "2021.11.03"]
[Round "7.9"]
[White "Badelka, Olga"]
[Black "Osmak, Iulija"]
[Result "1-0"]
[ECO "C11"]
[WhiteElo "2438"]
[BlackElo "2423"]
[Annotator "NA"]
[PlyCount "91"]
[EventDate "2021.10.27"]
[EventType "swiss"]
[EventCountry "LAT"]
[Tiebreak "Cut1 Buchholz+Sonneborn-Berger (Swiss)"]
[SourceTitle "playchess.com"]
[Source "ChessBase"]
[SourceQuality "1"]
[TimeControl "40/6000+30:20/3000+30:900+30"]

1. e4 {[%emt 0:10:03]} e6 {[%emt 0:16:50]} 2. d4 {[%emt 0:00:08]} d5 {[%emt 0:
00:06]} 3. Nc3 {[%emt 0:00:07]} Nf6 {[%emt 0:00:15]} 4. e5 {[%emt 0:00:11]}
Nfd7 {[%emt 0:00:04]} 5. f4 {[%emt 0:00:06]} c5 {[%emt 0:00:03]} 6. Nf3 {
[%emt 0:00:15]} Nc6 {[%emt 0:01:34]} 7. Be3 {[%emt 0:00:13]} Qb6 {[%emt 0:04:
54]} 8. Na4 {[%emt 0:13:34]} Qc7 {[%emt 0:02:20]} 9. c3 {[%emt 0:11:15]} c4 {
[%emt 0:18:41]} 10. b4 {[%emt 0:00:38]} a5 {[%emt 0:06:25]} 11. a3 {[%emt 0:03:
19]} Be7 {[%emt 0:01:40]} 12. Be2 {[%emt 0:00:59]} O-O {[%emt 0:01:17]} 13. O-O
{[%emt 0:00:36]} b5 {[%emt 0:08:20]} 14. Nc5 {[%emt 0:00:23]} Nxc5 {[%emt 0:00:
24]} 15. dxc5 {[%emt 0:03:47]} f6 {[%emt 0:07:15]} 16. exf6 {[%emt 0:22:25]}
Bxf6 $11 {[%emt 0:02:02]} 17. Rc1 {[%emt 0:00:33]} axb4 {[%emt 0:04:43]} 18.
axb4 {[%emt 0:00:04]} Ra2 {[%emt 0:02:09]} 19. Rf2 {[%emt 0:07:43]} Ne7 {
[%emt 0:11:42]} 20. Rc2 {[%emt 0:16:10]} Rxc2 {[%emt 0:06:48]} 21. Qxc2 {
[%emt 0:00:04]} Bd7 {[%emt 0:00:20]} 22. Qd2 {[%emt 0:02:39]} Nf5 {[%emt 0:02:
20]} 23. g4 {[%emt 0:01:41]} Nxe3 24. Qxe3 {[%emt 0:00:01]} g6 {[%emt 0:08:15]}
25. Bf1 {[%emt 0:00:35]} Bg7 {[%emt 0:00:20]} 26. Nd4 {[%emt 0:06:17]} Re8 {
[%emt 0:02:22]} 27. Bg2 {[%emt 0:00:27]} Kh8 {[%emt 0:00:21]} 28. Nf3 {[%emt 0:
04:55]} Rf8 {[%emt 0:00:52]} 29. Ng5 {[%emt 0:01:33]} Qc8 {[%emt 0:01:06]} 30.
h4 {[%emt 0:00:37]} Qd8 {[%emt 0:00:57]} 31. Nf3 {[%emt 0:02:21]} Bc8 {[%emt 0:
00:33]} 32. g5 {[%emt 0:00:20]} Qc7 {[%emt 0:00:53]} 33. Nd4 {[%emt 0:00:18]}
Bd7 {[%emt 0:00:37]} 34. Bh3 {[%emt 0:01:22]} e5 {[%emt 0:00:25]} 35. fxe5 {
[%emt 0:00:12]} Rxf2 {[%emt 0:00:09]} 36. Kxf2 {[%emt 0:00:08]} Bxh3 {[%emt 0:
00:17]} 37. Qxh3 {[%emt 0:00:05]} Bxe5 {[%emt 0:00:19]} 38. Nxb5 {[%emt 0:01:
07]} Qb8 {[%emt 0:01:18]} 39. Qf3 {[%emt 0:01:55]} Bg7 {[%emt 0:00:32]} 40. Nd6
{[%emt 0:00:46]} d4 {[%emt 0:00:09]} 41. cxd4 {[%emt 0:23:51]} Bxd4+ {[%emt 0:
20:20]} 42. Ke2 {[%emt 0:00:20]} h5 {[%emt 0:10:17]} 43. Qe4 {[%emt 0:03:41]}
Bg7 {[%emt 0:02:19]} 44. Qe8+ {[%emt 0:01:18]} Qxe8+ {[%emt 0:00:05]} 45. Nxe8
{[%emt 0:00:04]} Be5 {[%emt 0:00:21]} 46. c6 {[%emt 0:00:08]} 1-0